Cogmind - Beta 13 X2 @@@ ROGUE MODE // 2024.02.14 @ 14:07:40 Player: f3-rnm Result: Destroyed by P-70 Sage with Tesla Rifle Performance ------------- Evolutions (5) 2500 Regions Visited (22) 4400 Robots Destroyed (274) 1370 Value Destroyed (10750) 10750 Prototype IDs (24) 480 Alien Tech Used (0) 0 Bonus (3063) 3063 TOTAL SCORE: 22563 Bonus ------- High Alert Combat Kills 481 Follower Combat Kills 1468 Entered Garrisons 200 Network Hubs Disabled 200 Met Data Miner 300 Met R17 at Cetus 500 Friendly Fire -86 Cogmind --------- Core Integrity 0/1000 Matter 278/300 Energy 98/100 System Corruption 38% Temperature Cool (0) Movement Core (50) Location -5/Upper Caves Parts ------- > --- POWER (2) -------- (None) > --- PROPULSION (4) --- (None) > --- UTILITY (8) ------ (None) > --- WEAPON (3) ------- (None) > --- INVENTORY (5) ---- Compact Wheel Advanced Heat Sink Medium Storage Unit Terrain Scan Processor Advanced System Restoration Module Peak State ------------ > --- POWER ------------ Quantum Reactor Quantum Reactor > --- PROPULSION ------- Centrium Heavy Treads Centrium Heavy Treads > --- UTILITY ---------- Advanced Heat Sink Huge Storage Unit Machine Analyzer Encrypted Comm Array Energy Filter Centrium Medium Armor Plating Remote Shield Improved Hacking Suite > --- WEAPON ----------- Improved KE Penetrator Advanced KE Penetrator Mini Assault Cannon > --- INVENTORY -------- Improved Treads Improved Treads Centrium Heavy Treads Carbon-fiber Leg Flexi-carbon Leg Wheel Advanced Heat Sink High-capacity Storage Unit High-capacity Matter Pod Structural Scanner Advanced Visual Processing Unit Improved Particle Charger Improved Kinecellerator Transmission Jammer Improved Utility Shielding Centrium Medium Armor Plating Centrium Medium Armor Plating Hardlight Generator Remote Shield Wave Gun Long-range Proton Cannon Phase Cannon Great Maul Great Maul [Rating: 121] Favorites ----------- Power Improved Ion Engine Engine Improved Ion Engine Power Core Micro Fission Core Reactor Quantum Reactor Propulsion Light Treads Treads Light Treads Leg Carbon-fiber Leg Wheel Wheel Hover Unit Aerolev Unit Utility Hacking Suite Device Improved Coolant Injector Storage High-capacity Storage Unit Processor Machine Analyzer Hackware Hacking Suite Protection Hardened Medium Armor Plating Weapon Heavy Assault Rifle Energy Gun Heavy Laser Energy Cannon Advanced Plasma Cannon Ballistic Gun Heavy Assault Rifle Ballistic Cannon Bore Cannon Launcher Mini Grenade Launcher Special Weapon Remote Datajack Impact Weapon Great Maul Build | -11 -10 -9 -9 -8 -8 -8 -8 -7 -7 -7 -7 -6 -6 -6 -6 -6 -6 -5 -5 -5 -5 -5 ------- Run | Yrd Mat Mat Min Mat Gar Mat Sto Fac Low Low Dat Pro Fac Ext Cet Arc Hub Fac Was Fac Upp Upp Slots Evolved 10 | . . 2 . 2 . . . 2 . . . . 2 . . . . 2 . . . . Power 1 | . . . . . . . . . . . . . . . . . . 1 . . . . Propulsion 2 | . . . . 2 . . . . . . . . . . . . . . . . . . Utility 6 | . . 1 . . . . . 2 . . . . 2 . . . . 1 . . . . Weapon 1 | . . 1 . . . . . . . . . . . . . . . . . . . . Parts Attached 251 | 6 . 27 1 17 26 . 18 15 1 14 3 5 5 24 16 4 3 13 3 41 3 6 Power 29 | 1 . 4 . 1 1 . 2 1 . 2 . . . 1 2 1 . 2 . 10 . 1 Engine 12 | 1 . 3 . 1 . . 2 1 . 1 . . . 1 . . . . . 2 . . Core 11 | . . 1 . . 1 . . . . 1 . . . . . . . . . 7 . 1 Reactor 6 | . . . . . . . . . . . . . . . 2 1 . 2 . 1 . . Propulsion 69 | 2 . 7 . 6 17 . 4 5 . 4 . 1 1 9 2 . . . 2 6 . 3 Treads 56 | 2 . 7 . 5 12 . 4 5 . 4 . 1 . 3 2 . . . 2 6 . 3 Leg 6 | . . . . . . . . . . . . . . 6 . . . . . . . . Wheel 1 | . . . . . . . . . . . . . 1 . . . . . . . . . Hover 6 | . . . . 1 5 . . . . . . . . . . . . . . . . . Flight . | . . . . . . . . . . . . . . . . . . . . . . . Utility 70 | 1 . 8 . 1 5 . 3 6 . 2 . 1 4 6 6 1 1 8 . 16 1 . Device 32 | . . . . . 2 . 1 1 . 1 . 1 2 5 4 . 1 6 . 8 . . Storage 12 | 1 . 2 . . 3 . 1 . . . . . . . 1 . . . . 3 1 . Processor 5 | . . . . . . . . 2 . . . . . . . . . . . 3 . . Hackware 6 | . . 2 . . . . . 1 . . . . . . . . . 1 . 2 . . Protection 15 | . . 4 . 1 . . 1 2 . 1 . . 2 1 1 1 . 1 . . . . Artifact . | . . . . . . . . . . . . . . . . . . . . . . . Weapon 83 | 2 . 8 1 9 3 . 9 3 1 6 3 3 . 8 6 2 2 3 1 9 2 2 Energy Gun 5 | . . . . . . . . 1 . . . 1 . . . . . . . 2 . 1 Energy Cannon 14 | . . . . . . . 1 . 1 1 1 . . 3 . . . 1 . 4 2 . Ballistic Gun 29 | 2 . 7 1 5 2 . 1 2 . . . . . . 2 2 1 1 . 3 . . Ballistic Cannon 22 | . . . . 3 1 . 5 . . 2 1 1 . 4 4 . . . 1 . . . Launcher 3 | . . 1 . 1 . . . . . 1 . . . . . . . . . . . . Special Weapon 5 | . . . . . . . . . . 2 1 1 . 1 . . . . . . . . Impact Weapon 5 | . . . . . . . 2 . . . . . . . . . 1 1 . . . 1 Slashing Weapon . | . . . . . . . . . . . . . . . . . . . . . . . Piercing Weapon . | . . . . . . . . . . . . . . . . . . . . . . . Special Melee Weapon . | . . . . . . . . . . . . . . . . . . . . . . . Unidentified Prototypes 15 | . . . . 2 . . 4 . . . . . 1 . 3 . . 1 . 4 . . Corrupted Parts 2 | . . . . . . . . . . . . . . 2 . . . . . . . . System Corruption 13 | . . . . . . . . . . . . . . 13 . . . . . . . . Parts Lost 100 | . . 4 . 2 8 . 9 3 1 8 . 7 1 7 5 2 1 5 5 18 2 12 Power 14 | . . . . . . . . . . 1 . . . 1 . 1 . 1 . 7 . 3 Propulsion 27 | . . 2 . . 5 . 2 3 . 2 . 4 1 2 . . . . 1 2 . 3 Utility 27 | . . 1 . 1 1 . 3 . . 1 . 1 . 3 4 . 1 2 2 4 . 3 Weapon 32 | . . 1 . 1 2 . 4 . 1 4 . 2 . 1 1 1 . 2 2 5 2 3 Highest Loss Streak 12 | . . 2 . 2 3 . 3 2 1 4 . 3 1 6 2 1 1 3 5 9 1 12 To Critical Strikes 1 | . . . . . . . . . . . . . . 1 . . . . . . . . Average Slot Usage (%) 91 | . 85 98 100 99 98 100 88 96 100 96 78 91 64 90 85 84 85 82 43 64 86 39 Engine 6 | . 14 9 11 9 6 . 5 7 7 4 7 7 6 6 . . . . . . . . Core 1 | . . 1 . . 2 9 3 . . 2 . . . . . . . . . 5 11 2 Treads 21 | . 28 22 22 35 32 36 32 29 30 29 30 24 5 4 8 13 13 11 9 11 11 8 Leg 1 | . . . . . . . . . . . . . . 13 8 . . . . . . . Device 9 | . . . . . 6 9 9 8 15 15 15 15 13 18 18 13 12 18 10 15 17 4 Storage 9 | . 14 11 11 9 9 9 8 7 7 7 7 7 6 6 9 13 13 7 1 9 17 8 Processor 3 | . . . . . . . . 7 7 7 7 7 6 6 6 6 6 5 2 4 11 7 Hackware 4 | . . 12 11 9 9 9 3 . . . . . . . . . . 4 2 4 . . Protection 7 | . . 9 11 8 2 . 3 12 7 4 7 6 2 10 8 11 13 6 1 . . . Energy Cannon 2 | . . . . . . . 3 7 9 11 . 6 . 4 . . . 2 . 4 5 . Ballistic Gun 13 | . 28 31 33 24 18 18 5 3 . . . . . . 3 12 7 7 3 2 9 . Ballistic Cannon 4 | . . . . 2 8 9 9 . . 2 . 13 6 12 12 6 6 1 2 . . . Impact Weapon 1 | . . . . . . . 5 7 7 4 . . . . . . 4 . . . . 2 Naked Turns 26 | . . . . . . . . . . . . . . . . . . . 6 . . 20 Heaviest Build 194 | 14 14 102 104 107 104 98 108 71 76 79 79 84 80 94 182 178 174 194 152 62 88 53 Greatest Support 160 | 40 40 40 40 80 80 80 80 96 96 96 96 96 20 75 160 160 160 160 160 150 140 98 Greatest Overweight (x) 9 | . . 2 2 1 3 1 1 1 . 1 . 3 7 9 1 1 1 1 . 1 . . Average Overweight (x) 1 | . . . 2 1 . 1 . . . . . . 4 4 . 1 1 . . . . . Largest Inventory Capacity 25 | 8 8 25 25 25 25 25 25 20 20 20 20 20 20 20 25 25 25 25 25 10 20 20 Average Capacity 20 | 6 8 16 25 25 24 25 21 20 20 20 20 20 20 20 22 25 25 25 13 8 15 15 Most Carried 25 | 3 8 22 25 25 25 25 25 20 20 20 18 20 20 20 25 25 25 25 25 10 14 13 Average Carried 19 | . 5 15 22 24 23 25 20 19 19 19 18 18 18 19 21 24 25 24 12 7 11 7 Final Capacity 25 | 8 8 25 25 25 25 25 20 20 20 20 20 20 20 20 25 25 25 25 5 10 20 5 Final Carried 25 | 1 8 22 25 25 25 25 20 20 20 18 18 17 20 20 24 25 25 25 4 10 14 5 Class Distribution -------------------- 44% | Scavenger-Tank 17% | Scavenger-Mutant 11% | Mutant 8% | Scavenger-Gunner 7% | Gunner 4% | Scavenger-Skirmisher Dominant Class ---------------- Mutant | -10/Materials Scavenger-Tank | -9/Materials Scavenger-Tank | -9/Mines Scavenger-Tank | -8/Materials Scavenger-Gunner | -8/Garrison Scavenger-Gunner | -8/Materials Scavenger-Mutant | -8/Storage Scavenger-Mutant | -7/Factory Scavenger-Mutant | -7/Lower Caves Mutant | -7/Lower Caves Mutant | -7/Data Miner Gunner | -6/Proximity Caves Gunner | -6/Factory Scavenger-Tank | -6/Extension Scavenger-Tank | -6/Cetus Scavenger-Tank | -6/Archives Scavenger-Mutant | -6/Hub_04(d) Scavenger-Mutant | -5/Factory Mutant | -5/Waste Mutant | -5/Factory Scavenger-Skirmisher | -5/Upper Caves Mutant | -5/Upper Caves Resources | -11 -10 -9 -9 -8 -8 -8 -8 -7 -7 -7 -7 -6 -6 -6 -6 -6 -6 -5 -5 -5 -5 -5 ----------- Run | Yrd Mat Mat Min Mat Gar Mat Sto Fac Low Low Dat Pro Fac Ext Cet Arc Hub Fac Was Fac Upp Upp Matter Collected 8770 | 178 190 1015 88 542 1211 45 773 464 42 326 . 302 119 763 1084 195 163 229 3 728 310 . Remotely . | . . . . . . . . . . . . . . . . . . . . . . . Salvage Created 11002 | . 314 1769 51 900 855 100 1075 476 250 966 . 541 21 508 1016 402 . 399 . 1060 299 . Parts 603 | . 14 137 5 50 52 9 70 32 7 32 . 25 4 31 43 19 . 15 . 48 10 . Haulers Intercepted 15 | . . 6 . 2 . 1 3 1 . . . . . 1 . . . . . 1 . . Recyclers Shooed 4 | . . 2 . 1 . . . . . . . . . . . . . . . 1 . . Parts Field Recycled . | . . . . . . . . . . . . . . . . . . . . . . . Retrieved Matter . | . . . . . . . . . . . . . . . . . . . . . . . Parts Self-Destructed 75 | . . . . . . . . . 7 30 . 28 . . . . . . . . 10 . Prevented . | . . . . . . . . . . . . . . . . . . . . . . . Kills | -11 -10 -9 -9 -8 -8 -8 -8 -7 -7 -7 -7 -6 -6 -6 -6 -6 -6 -5 -5 -5 -5 -5 ------- Run | Yrd Mat Mat Min Mat Gar Mat Sto Fac Low Low Dat Pro Fac Ext Cet Arc Hub Fac Was Fac Upp Upp Combat Hostiles Destroyed 210 | . 7 33 3 17 25 1 20 6 5 21 . 12 . 4 22 4 . 9 . 16 5 . Melee 1 | . . . . . . . 1 . . . . . . . . . . . . . . . Guns 99 | . 7 29 3 12 17 1 6 . 1 . . . . . 5 3 . 6 . 7 2 . Cannons 95 | . . . . 3 8 . 10 5 4 16 . 12 . 4 17 1 . 3 . 9 3 . AOE 9 | . . 4 . 2 . . . . . 3 . . . . . . . . . . . . Classes Destroyed 16 | . 1 11 . 2 1 . . . . 1 . . . . . . . . . . . . Worker 9 | . . 3 . . . . 4 1 . . . . 1 . . . . . . . . . Builder 16 | . . 2 1 . . . 5 4 . . . . 1 2 . . . . . 1 . . Tunneler 2 | . . 1 . 1 . . . . . . . . . . . . . . . . . . Hauler 15 | . . 6 . 2 . 1 3 1 . . . . . 1 . . . . . 1 . . Recycler 4 | . . . . 1 . . 1 . . . . . . 1 . . . . . 1 . . Mechanic 2 | . . 1 . . . . . . . . . . . . . . . . . 1 . . Operator 6 | . . 1 . . . . 1 . . . . . . 1 . 3 . . . . . . Watcher 10 | . . 3 . 2 . . 1 1 . . . . . 1 1 . . . . 1 . . Swarmer 40 | . . 7 3 4 9 . 5 . . . . 4 . . 4 . . 4 . . . . Grunt 85 | . 7 12 . 8 8 . 9 . 3 10 . 7 . 2 8 . . 5 . 3 3 . Brawler 9 | . . 1 . 1 1 . . . . 4 . 1 . . 1 . . . . . . . Duelist 11 | . . 3 . . . . 1 . 1 4 . . . . . . . . . 1 1 . Protector 1 | . . . . . . . . . . 1 . . . . . . . . . . . . Sentry 35 | . . 10 . 3 5 . 4 3 1 2 . . . 1 . 4 . . . 1 1 . Hunter 12 | . . . . 1 1 1 1 1 . . . . . 1 . . . . . 6 . . Programmer 9 | . . . . . 1 . . 2 . . . . . . 1 . . . . 5 . . Cetus Guard 8 | . . . . . . . . . . . . . . . 8 . . . . . . . Best Kill Streak 8 | . 4 5 3 7 4 1 5 3 2 7 . 4 1 2 8 4 . 4 . 5 4 . Combat Bots Only 8 | . 4 5 3 6 4 1 4 1 2 7 . 4 . 2 8 1 . 4 . 4 4 . Max Kills in Single Turn 2 | . 1 2 1 2 1 1 1 2 1 2 . 2 1 1 2 1 . 1 . 1 1 . Gunslinging 1 | . . 1 . 1 . . . . . . . . . . . . . . . . . . Exploded 2 | . . 2 . 1 . . . . . 2 . . . . . . . . . . . . Melee 1 | . . . . . . . 1 . . . . . . . . . . . . . . . Uniques/NPCs Destroyed . | . . . . . . . . . . . . . . . . . . . . . . . Combat | -11 -10 -9 -9 -8 -8 -8 -8 -7 -7 -7 -7 -6 -6 -6 -6 -6 -6 -5 -5 -5 -5 -5 -------- Run | Yrd Mat Mat Min Mat Gar Mat Sto Fac Low Low Dat Pro Fac Ext Cet Arc Hub Fac Was Fac Upp Upp Hostile Shots Fired 1651 | . 40 132 9 77 138 4 124 114 20 92 . 76 . 128 134 42 . 101 5 292 40 83 Missed 410 | . 7 31 2 14 24 1 41 44 3 33 . 11 . 45 38 11 . 17 . 68 9 11 Damage Taken 20609 | . 383 1233 54 903 1633 34 1501 646 323 1287 . 1013 74 1202 1867 628 105 1333 229 3917 644 1600 Core 2429 | . 71 163 . 32 160 12 203 84 18 97 . 128 . 139 254 58 . 140 85 374 120 291 Absorbed by Shields 619 | . . . . . . . . . . . . . . 126 197 108 . 178 10 . . . Reduced by Siege Mode 181 | . . . . . . . . . . . . . . . . 22 . 41 . 93 . 25 Redirected to Shielding 105 | . . . . . . . . . . 57 . 48 . . . . . . . . . . Ignored by Resistances 160 | . . . . . . . . . . . . . . 130 . . . . . 30 . . Regen/Repaired (Parts) 183 | . . 68 . . . . . 115 . . . . . . . . . . . . . . Core Remaining (%) 59 | 100 71 . 59 . . . 26 . . . . 53 . . . . 46 . . . . . Volleys Fired 693 | . 21 108 9 44 71 4 57 38 15 48 . 25 9 42 48 14 . 30 6 79 21 4 Largest 3 | . 2 3 3 3 3 3 3 2 2 2 . 3 2 3 3 3 . 3 3 3 3 2 Hottest 207 | . 40 66 69 132 95 95 136 178 196 196 . 207 117 171 171 127 . 127 116 203 141 159 Shots Fired 1641 | . 42 300 27 125 192 12 141 63 30 84 . 62 10 90 144 44 1 62 15 150 41 6 Gun 897 | . 42 297 27 104 133 8 59 25 12 . . 2 1 6 24 29 1 36 8 60 20 3 Cannon 718 | . . . . 18 59 4 82 38 18 71 . 59 9 78 120 15 . 26 7 90 21 3 Launcher 11 | . . 3 . 3 . . . . . 5 . . . . . . . . . . . . Special 15 | . . . . . . . . . . 8 . 1 . 6 . . . . . . . . Kinetic 1273 | . 42 297 27 122 192 12 132 24 . 17 . 38 9 53 144 44 1 42 15 42 20 . Thermal 337 | . . . . . . . 9 39 30 58 . 23 1 24 . . . 20 . 106 21 6 Explosive 11 | . . 3 . 3 . . . . . 5 . . . . . . . . . . . . Electromagnetic 9 | . . . . . . . . . . . . . . 7 . . . . . 2 . . Robot Hit Streak 19 | . 12 19 14 11 17 9 14 15 10 18 . 9 11 7 7 15 . 8 8 16 8 8 Robot Miss Streak 15 | . 1 8 1 4 5 1 6 5 3 2 . 2 1 9 15 2 . 5 3 5 3 1 Penetration Max 1 | . . . . 1 . 1 1 . . . . . . . 1 1 . 1 . . 1 . Secondary Targets 7 | . 1 3 2 1 . . . . . . . . . . . . . . . . . . Max Gunslinging Chain 2 | . 1 2 1 1 . . . . . . . . . . . . . . . . . . Shots Hit Robots 951 | . 30 184 15 73 86 8 87 47 20 57 . 42 7 45 59 28 . 29 11 92 20 11 Core Hits 464 | . 12 89 4 38 40 4 39 31 12 37 . 22 2 18 32 17 . 13 1 40 11 2 Critical Kills 45 | . . 1 . 1 . . 5 . . 4 . 5 . 5 19 2 . 2 . 1 . . Critical Parts Destroyed 42 | . . 1 . 2 . . 2 . . 3 . 5 . 7 16 3 . 2 . . . 1 Critical Strikes 100 | . . 2 . 3 . . 8 . . 7 . 11 . 12 41 8 . 4 1 1 . 2 Burn 1 | . . . . . . . . . . . . . . . . . . . . . . 1 Meltdown 3 | . . . . . . . 1 . . 2 . . . . . . . . . . . . Destroy 91 | . . 2 . 3 . . 4 . . 5 . 10 . 12 41 8 . 4 1 1 . . Blast 2 | . . . . . . . 1 . . . . 1 . . . . . . . . . . Smash 3 | . . . . . . . 2 . . . . . . . . . . . . . . 1 Melee Attacks 34 | . . . . . . . 15 7 . . . . . . . . 4 1 . . . 7 Impact 34 | . . . . . . . 15 7 . . . . . . . . 4 1 . . . 7 Slashing . | . . . . . . . . . . . . . . . . . . . . . . . Piercing . | . . . . . . . . . . . . . . . . . . . . . . . Sneak Attacks 2 | . . . . . . . 2 . . . . . . . . . . . . . . . Combat Hostiles . | . . . . . . . . . . . . . . . . . . . . . . . Follow-up Attacks . | . . . . . . . . . . . . . . . . . . . . . . . Damage Inflicted 24219 | . 452 2567 251 1728 1702 143 2199 1391 560 2095 . 1228 244 1388 1939 811 . 1047 307 3182 600 385 Guns 9883 | . 452 2281 249 1089 1194 123 803 446 259 . . 38 20 38 446 667 . 645 153 668 253 59 Cannons 12011 | . . . . 195 508 20 1056 945 301 1340 . 1190 224 1350 1493 144 . 402 154 2230 347 112 Explosions 1732 | . . 280 . 444 . . . . . 744 . . . . . . . . . 264 . . Melee 523 | . . . . . . . 309 . . . . . . . . . . . . . . 214 Ramming 59 | . . 6 2 . . . 31 . . . . . . . . . . . . 20 . . Kinetic 14508 | . 452 2281 249 1284 1702 143 1695 434 . 192 . 630 224 737 1939 811 . 740 307 435 253 . Thermal 7430 | . . . . . . . 164 957 560 1159 . 598 20 442 . . . 307 . 2705 347 171 Explosive 1468 | . . 280 . 444 . . . . . 744 . . . . . . . . . . . . Electromagnetic 231 | . . . . . . . . . . . . . . 209 . . . . . 22 . . Impact 523 | . . . . . . . 309 . . . . . . . . . . . . . . 214 Slashing . | . . . . . . . . . . . . . . . . . . . . . . . Piercing . | . . . . . . . . . . . . . . . . . . . . . . . Highest Corruption 38 | . . . . . 7 7 8 1 1 1 1 1 . 13 13 13 14 . 15 26 26 38 Average Corruption 9 | . . . . . 5 7 7 1 1 1 1 1 . 12 13 13 13 . 6 19 26 34 Corruption Purged . | . . . . . . . . . . . . . . . . . . . . . . . Corruption Blocked . | . . . . . . . . . . . . . . . . . . . . . . . Effects 362 | . . . . . 46 4 36 2 4 7 1 13 . 62 32 26 11 . 5 69 37 7 Message Errors 72 | . . . . . 8 . 6 1 2 4 1 3 . 13 7 3 3 . 1 16 3 1 Matter Fused 81 | . . . . . 8 1 4 . 1 1 . 3 . 20 2 7 4 . 1 15 14 . Heat Flow Errors 38 | . . . . . 5 . 6 . . . . 3 . 7 1 5 1 . . 6 3 1 Energy Discharges 48 | . . . . . 9 3 6 . . 2 . 1 . 5 8 2 1 . . 6 4 1 Parts Rejected 8 | . . . . . 1 . 1 . . . . . . 1 2 1 . . . 1 1 . Parts Fused 4 | . . . . . . . 3 . . . . . . 1 . . . . . . . . Data Loss (minor) 47 | . . . . . 8 . 6 . . . . 1 . 6 4 4 1 . 2 8 6 1 Data Loss (major) 20 | . . . . . 3 . . 1 1 . . 1 . 5 1 1 . . . 5 2 . Misfires 19 | . . . . . 1 . 2 . . . . 1 . 4 3 2 1 . 1 2 2 . Alerts 6 | . . . . . 1 . . . . . . . . . 1 . . . . 2 2 . Misdirections 5 | . . . . . . . . . . . . . . . . 1 . . . 2 . 2 Weapon Failures 14 | . . . . . 2 . 2 . . . . . . . 3 . . . . 6 . 1 Overload Shots . | . . . . . . . . . . . . . . . . . . . . . . . Overflow Damage 436 | . . . . . 25 . 205 13 . 58 . 7 4 32 2 . . 21 . 40 . 29 Projectiles 202 | . . . . . 25 . 9 13 . 49 . 7 4 32 2 . . 21 . 40 . . Explosions 9 | . . . . . . . . . . 9 . . . . . . . . . . . . Melee 225 | . . . . . . . 196 . . . . . . . . . . . . . . 29 Knockbacks 38 | . . . . 1 2 . 8 . . 3 . 9 3 3 4 . . 2 . 1 . 2 Impact 4 | . . . . . . . 1 . . . . . . . . . . . . 1 . 2 Kinetic 32 | . . . . 1 2 . 7 . . 3 . 8 3 3 3 . . 2 . . . . Secondary 2 | . . . . . . . . . . . . 1 . . 1 . . . . . . . Self-Inflicted Damage 142 | . . . . 34 . . . . . 46 . . . . . . . . . 62 . . Shots 4 | . . . . 2 . . . . . 1 . . . . . . . . . 1 . . Rammed 10 | . . . 2 . . . 1 . . . . . . . . . . . . 7 . . Targets Rammed 12 | . . 1 2 . . . 2 . . . . . . . . . . . . 7 . . Kicked . | . . . . . . . . . . . . . . . . . . . . . . . Crushed 2 | . . 1 . . . . 1 . . . . . . . . . . . . . . . Highest Temperature 431 | . 5 132 55 232 365 . 217 198 127 160 . 373 . 219 191 202 158 308 63 431 239 179 Average Temperature 73 | . 2 28 16 64 89 . 79 93 59 52 . 107 . 62 68 74 86 106 27 111 46 73 Received Heat Transfer 5288 | . 210 291 . 378 594 . 531 114 126 300 . 270 . 348 423 60 . 365 . 297 270 711 Effects 8 | . . . . . 1 . . . . . . . . . . . . 1 . 6 . . Shutdowns 2 | . . . . . . . . . . . . . . . . . . . . 2 . . Energy Bleed 3 | . . . . . 1 . . . . . . . . . . . . 1 . 1 . . Interference 1 | . . . . . . . . . . . . . . . . . . . . 1 . . Matter Decay 1 | . . . . . . . . . . . . . . . . . . . . 1 . . Damage (minor) 1 | . . . . . . . . . . . . . . . . . . . . 1 . . Siege Activations 7 | . . . . . . . . . . . . . . . . 2 . 1 . 2 . 2 Total Turns 134 | . . . . . . . . . . . . . . . . 46 . 23 . 51 . 14 Longest Duration 30 | . . . . . . . . . . . . . . . . 28 . 23 . 30 . 14 Robots Corrupted . | . . . . . . . . . . . . . . . . . . . . . . . Combat Hostiles . | . . . . . . . . . . . . . . . . . . . . . . . Parts Fried 5 | . . . . . . . 5 . . . . . . . . . . . . . . . Impact Corruptions 9 | . . . . . . . 8 . . . . . . . . . . . . . . 1 Robots Melted 4 | . . . . . . . 1 1 . 2 . . . . . . . . . . . . Combat Hostiles 4 | . . . . . . . 1 1 . 2 . . . . . . . . . . . . Parts Melted 12 | . . . . . . . 3 5 1 1 . 2 . . . . . . . . . . Heat Transferred 7173 | . . . . . . . 250 1425 1025 1832 . 924 37 592 . . . 370 . 533 . 185 Parts Sabotaged . | . . . . . . . . . . . . . . . . . . . . . . . Parts Stolen . | . . . . . . . . . . . . . . . . . . . . . . . Parts Stripped . | . . . . . . . . . . . . . . . . . . . . . . . Power Chain Reactions 3 | . . . . . . . . . . . . . . . . . . . . 3 . . Missiles Intercepted . | . . . . . . . . . . . . . . . . . . . . . . . Alert | -11 -10 -9 -9 -8 -8 -8 -8 -7 -7 -7 -7 -6 -6 -6 -6 -6 -6 -5 -5 -5 -5 -5 ------- Run | Yrd Mat Mat Min Mat Gar Mat Sto Fac Low Low Dat Pro Fac Ext Cet Arc Hub Fac Was Fac Upp Upp Peak Influence 1538 | . 185 619 241 392 1538 749 402 227 . . . . 39 285 347 295 69 180 31 329 . . Initial 749 | . . 78 241 9 182 749 275 150 . . . . 25 18 48 138 35 28 31 10 . . Average 256 | . 68 384 75 123 863 698 298 126 . . . . 22 101 172 183 45 70 14 113 . . Maximum Alert Level 4 | . . 2 1 1 4 3 2 1 . . . . . 1 1 1 . . . 1 . . Low Security (%) 58 | 100 100 16 84 76 3 . 8 83 . . . . 100 89 70 64 100 100 100 76 . . Level 1 20 | . . 23 15 23 11 . 85 16 . . . . . 10 29 35 . . . 23 . . Level 2 12 | . . 60 . . 24 42 6 . . . . . . . . . . . . . . . Level 3 3 | . . . . . 26 57 . . . . . . . . . . . . . . . . Level 4 4 | . . . . . 34 . . . . . . . . . . . . . . . . . Level 5 . | . . . . . . . . . . . . . . . . . . . . . . . High Security . | . . . . . . . . . . . . . . . . . . . . . . . Max Security . | . . . . . . . . . . . . . . . . . . . . . . . Squads Dispatched 30 | . 2 5 . 3 . . 3 4 . 1 . . 1 3 . . 2 3 . 3 . . Investigation 5 | . 1 1 . 2 . . . . . . . . . . . . . 1 . . . . Extermination 6 | . . . . . . . . 2 . . . . 1 . . . 1 1 . 1 . . Reinforcement 15 | . 1 3 . 1 . . 2 2 . . . . . 3 . . 1 . . 2 . . Assault 2 | . . 1 . . . . . . . 1 . . . . . . . . . . . . Garrison 2 | . . . . . . . 1 . . . . . . . . . . 1 . . . . Intercept . | . . . . . . . . . . . . . . . . . . . . . . . Searches Triggered . | . . . . . . . . . . . . . . . . . . . . . . . Construction Impeded 3 | . . . . . . . . 2 . . . . . . . . . . . 1 . . Haulers Reinforced 1 | . . . . . . . . . . . . . . . . . . . . 1 . . Active Scanning Responses . | . . . . . . . . . . . . . . . . . . . . . . . Cargo Convoy Interrupts . | . . . . . . . . . . . . . . . . . . . . . . . Stealth | -11 -10 -9 -9 -8 -8 -8 -8 -7 -7 -7 -7 -6 -6 -6 -6 -6 -6 -5 -5 -5 -5 -5 --------- Run | Yrd Mat Mat Min Mat Gar Mat Sto Fac Low Low Dat Pro Fac Ext Cet Arc Hub Fac Was Fac Upp Upp Distress Signals 21 | . 2 6 . 3 . . 4 1 . . . . . 1 2 . . . . 2 . . Communications Jammed . | . . . . . . . . . . . . . . . . . . . . . . . Distress Signals . | . . . . . . . . . . . . . . . . . . . . . . . Times Spotted 347 | . 10 59 6 25 32 1 26 11 7 24 . 16 1 35 25 6 6 15 5 24 6 7 Peak Tracking Total 8 | . 4 6 3 8 5 . 6 3 4 7 . 4 1 5 5 2 3 4 5 5 4 4 Tactical Retreats 21 | . . 2 1 . 2 . 1 . 2 2 . . . 2 2 . . 2 . 4 . 1 Traps | -11 -10 -9 -9 -8 -8 -8 -8 -7 -7 -7 -7 -6 -6 -6 -6 -6 -6 -5 -5 -5 -5 -5 ------- Run | Yrd Mat Mat Min Mat Gar Mat Sto Fac Low Low Dat Pro Fac Ext Cet Arc Hub Fac Was Fac Upp Upp Traps Triggered 23 | . 1 1 . 2 7 . 4 . . . . . . 5 . . . 1 . 2 . . Indirectly . | . . . . . . . . . . . . . . . . . . . . . . . Trap Hack Attempts . | . . . . . . . . . . . . . . . . . . . . . . . Triggered . | . . . . . . . . . . . . . . . . . . . . . . . Disarmed . | . . . . . . . . . . . . . . . . . . . . . . . Reprogrammed . | . . . . . . . . . . . . . . . . . . . . . . . Reused . | . . . . . . . . . . . . . . . . . . . . . . . Traps Extracted . | . . . . . . . . . . . . . . . . . . . . . . . Installed . | . . . . . . . . . . . . . . . . . . . . . . . Triggered 2 | . . . . . . . . . . 2 . . . . . . . . . . . . Machines | -11 -10 -9 -9 -8 -8 -8 -8 -7 -7 -7 -7 -6 -6 -6 -6 -6 -6 -5 -5 -5 -5 -5 ---------- Run | Yrd Mat Mat Min Mat Gar Mat Sto Fac Low Low Dat Pro Fac Ext Cet Arc Hub Fac Was Fac Upp Upp Machines Disabled 22 | . . 1 1 2 7 . . . . 1 . . 1 1 2 1 . 3 . 2 . . Max in Single Turn 2 | . . 1 . 1 2 . . . . 1 . . . . 1 1 . 1 . 1 . . Garrison Relay 1 | . . . . . 1 . . . . . . . . . . . . . . . . . Phase Generator 1 | . . . . . 1 . . . . . . . . . . . . . . . . . Network Hub 1 | . . . . . . . . . . . . . . . . . 1 . . . . . Machines Repaired . | . . . . . . . . . . . . . . . . . . . . . . . Machines Dismantled . | . . . . . . . . . . . . . . . . . . . . . . . Machines Sabotaged . | . . . . . . . . . . . . . . . . . . . . . . . Overloaded Fab Kills . | . . . . . . . . . . . . . . . . . . . . . . . Hacking | -11 -10 -9 -9 -8 -8 -8 -8 -7 -7 -7 -7 -6 -6 -6 -6 -6 -6 -5 -5 -5 -5 -5 --------- Run | Yrd Mat Mat Min Mat Gar Mat Sto Fac Low Low Dat Pro Fac Ext Cet Arc Hub Fac Was Fac Upp Upp Machines Accessed 31 | . . 2 . 3 2 2 5 4 . . 4 . 1 2 . . . 2 . 4 . . Terminals 21 | . . 1 . 2 2 2 5 3 . . . . 1 2 . . . 1 . 2 . . Fabricators 1 | . . . . . . . . . . . . . . . . . . 1 . . . . Repair Stations 3 | . . 1 . . . . . 1 . . . . . . . . . . . 1 . . Recycling Units 1 | . . . . . . . . . . . . . . . . . . . . 1 . . Scanalyzers . | . . . . . . . . . . . . . . . . . . . . . . . Garrison Access 1 | . . . . 1 . . . . . . . . . . . . . . . . . . Total Hacks 82 | . . 3 . 6 2 7 7 7 . . 30 . 1 4 . . . 9 . 6 . . Successful 59 | . . 3 . 2 2 3 6 5 . . 30 . 1 2 . . . 2 . 3 . . Failed 23 | . . . . 4 . 4 1 2 . . . . . 2 . . . 7 . 3 . . Catastrophic 4 | . . . . 1 . . . 1 . . . . . . . . . 1 . 1 . . Database Lockouts . | . . . . . . . . . . . . . . . . . . . . . . . Manual 25 | . . 1 . 4 . 7 2 4 . . . . . 4 . . . 1 . 2 . . Terminals 35 | . . 1 . 4 2 7 7 5 . . . . 1 4 . . . 1 . 3 . . Fabricators 8 | . . . . . . . . . . . . . . . . . . 8 . . . . Repair Stations 6 | . . 2 . . . . . 2 . . . . . . . . . . . 2 . . Recycling Units 1 | . . . . . . . . . . . . . . . . . . . . 1 . . Scanalyzers . | . . . . . . . . . . . . . . . . . . . . . . . Garrison Access 2 | . . . . 2 . . . . . . . . . . . . . . . . . . Terminal Hacks 49 | . . 1 . 1 2 3 6 3 . . 30 . 1 2 . . . . . . . . Record 11 | . . . . . . . . . . . 11 . . . . . . . . . . . Part Schematic 10 | . . . . . . . . . . . 10 . . . . . . . . . . . Robot Schematic 6 | . . . . . . . . . . . 6 . . . . . . . . . . . Prototype ID Bank 3 | . . . . . . . . . . . 3 . . . . . . . . . . . Open Door 5 | . . . . . 1 . 4 . . . . . . . . . . . . . . . Branch Access Points 3 | . . 1 . . . 1 . 1 . . . . . . . . . . . . . . Emergency Access Points 1 | . . . . . 1 . . . . . . . . . . . . . . . . . Alert Level 6 | . . . . 1 . 1 1 1 . . . . 1 1 . . . . . . . . Unreport Threat 3 | . . . . . . 1 1 . . . . . . 1 . . . . . . . . Zone Layout 1 | . . . . . . . . 1 . . . . . . . . . . . . . . Fabricator Hacks 2 | . . . . . . . . . . . . . . . . . . 2 . . . . Load Schematic 1 | . . . . . . . . . . . . . . . . . . 1 . . . . Build 1 | . . . . . . . . . . . . . . . . . . 1 . . . . Repair Station Hacks 6 | . . 2 . . . . . 2 . . . . . . . . . . . 2 . . Scan Component 3 | . . 1 . . . . . 1 . . . . . . . . . . . 1 . . Repair 3 | . . 1 . . . . . 1 . . . . . . . . . . . 1 . . Recycling Unit Hacks 1 | . . . . . . . . . . . . . . . . . . . . 1 . . Retrieve Components 1 | . . . . . . . . . . . . . . . . . . . . 1 . . Scanalyzer . | . . . . . . . . . . . . . . . . . . . . . . . Garrison Access Hacks 1 | . . . . 1 . . . . . . . . . . . . . . . . . . Unlock Access 1 | . . . . 1 . . . . . . . . . . . . . . . . . . Unauthorized Hacks . | . . . . . . . . . . . . . . . . . . . . . . . Terminals . | . . . . . . . . . . . . . . . . . . . . . . . Fabricators . | . . . . . . . . . . . . . . . . . . . . . . . Repair Stations . | . . . . . . . . . . . . . . . . . . . . . . . Recycling Units . | . . . . . . . . . . . . . . . . . . . . . . . Scanalyzers . | . . . . . . . . . . . . . . . . . . . . . . . Garrison Access . | . . . . . . . . . . . . . . . . . . . . . . . Data Cores Recovered 1 | . . 1 . . . . . . . . . . . . . . . . . . . . Used . | . . . . . . . . . . . . . . . . . . . . . . . Hacking Detections 13 | . . . . 2 1 2 2 4 . . . . . . . . . 1 . 1 . . Full Trace Events 3 | . . . . 1 . . 1 . . . . . . . . . . 1 . . . . Feedback Events . | . . . . . . . . . . . . . . . . . . . . . . . Feedback Blocked . | . . . . . . . . . . . . . . . . . . . . . . . Robot Schematics Acquired 6 | . . . . . . . . . . . 6 . . . . . . . . . . . Robots Built . | . . . . . . . . . . . . . . . . . . . . . . . Authchips . | . . . . . . . . . . . . . . . . . . . . . . . Time . | . . . . . . . . . . . . . . . . . . . . . . . Total Robot Build Rating . | . . . . . . . . . . . . . . . . . . . . . . . Part Schematics Acquired 10 | . . . . . . . . . . . 10 . . . . . . . . . . . Parts Built . | . . . . . . . . . . . . . . . . . . . . . . . Authchips . | . . . . . . . . . . . . . . . . . . . . . . . Time 169 | . . . . . . . . . . . . . . . . . . 169 . . . . Total Part Build Rating . | . . . . . . . . . . . . . . . . . . . . . . . Parts Repaired 2 | . . 1 . . . . . 1 . . . . . . . . . . . . . . Time 153 | . . 32 . . . . . 26 . . . . . . . . . . . 95 . . Parts Recycled . | . . . . . . . . . . . . . . . . . . . . . . . Recycled Matter . | . . . . . . . . . . . . . . . . . . . . . . . Retrieved Matter . | . . . . . . . . . . . . . . . . . . . . . . . Retrieved Components 1 | . . . . . . . . . . . . . . . . . . . . 1 . . Parts Scanalyzed . | . . . . . . . . . . . . . . . . . . . . . . . Part Schematics Acquired . | . . . . . . . . . . . . . . . . . . . . . . . Parts Damaged . | . . . . . . . . . . . . . . . . . . . . . . . Bothacking | -11 -10 -9 -9 -8 -8 -8 -8 -7 -7 -7 -7 -6 -6 -6 -6 -6 -6 -5 -5 -5 -5 -5 ------------ Run | Yrd Mat Mat Min Mat Gar Mat Sto Fac Low Low Dat Pro Fac Ext Cet Arc Hub Fac Was Fac Upp Upp Used RIF Installer . | . . . . . . . . . . . . . . . . . . . . . . . Robots Hacked . | . . . . . . . . . . . . . . . . . . . . . . . Non-combat . | . . . . . . . . . . . . . . . . . . . . . . . Combat . | . . . . . . . . . . . . . . . . . . . . . . . Robot Hacks Applied . | . . . . . . . . . . . . . . . . . . . . . . . Relay Couplers Released 5 | . . . . . 5 . . . . . . . . . . . . . . . . . Machine Destruction 5 | . . . . . 5 . . . . . . . . . . . . . . . . . Fabnet Peak Effective % . | . . . . . . . . . . . . . . . . . . . . . . . Robots Rewired 15 | . . . . . 3 . . . . 2 . 1 . 9 . . . . . . . . Allies Hacked . | . . . . . . . . . . . . . . . . . . . . . . . Hacks Repelled . | . . . . . . . . . . . . . . . . . . . . . . . Allies | -11 -10 -9 -9 -8 -8 -8 -8 -7 -7 -7 -7 -6 -6 -6 -6 -6 -6 -5 -5 -5 -5 -5 -------- Run | Yrd Mat Mat Min Mat Gar Mat Sto Fac Low Low Dat Pro Fac Ext Cet Arc Hub Fac Was Fac Upp Upp Total Allies 30 | . . . 3 . 3 . . . . 2 . 2 . 20 . . . . . . . . Largest Group 7 | . . . 3 . 3 . . . . 2 . 2 2 7 4 . . . . . . . Highest-Rated Group 297 | . . . 40 . 90 . . . . 48 . 116 116 297 145 . . . . . . . Highest-Rated Ally 159 | . . . 16 . 39 . . . . 32 . 96 96 159 39 . . . . . . . Warlord Squad Rendezvous 2 | . . . . . . . . . . . . . . . . . 1 1 . . . . Chimera 1 | . . . . . . . . . . . . . . . . . . 1 . . . . Ghost 1 | . . . . . . . . . . . . . . . . . 1 . . . . . Total Orders . | . . . . . . . . . . . . . . . . . . . . . . . Ally Attacks 294 | . . . 35 . 36 . . . . 7 . 12 1 170 33 . . . . . . . Total Damage 6402 | . . . 404 . 489 . . . . 158 . 411 298 4170 472 . . . . . . . Kills 55 | . . . 6 . 7 . . . . . . 3 3 34 2 . . . . . . . Allies Corrupted . | . . . . . . . . . . . . . . . . . . . . . . . Allies Melted . | . . . . . . . . . . . . . . . . . . . . . . . Intel | -11 -10 -9 -9 -8 -8 -8 -8 -7 -7 -7 -7 -6 -6 -6 -6 -6 -6 -5 -5 -5 -5 -5 ------- Run | Yrd Mat Mat Min Mat Gar Mat Sto Fac Low Low Dat Pro Fac Ext Cet Arc Hub Fac Was Fac Upp Upp Robot Analysis Total . | . . . . . . . . . . . . . . . . . . . . . . . Derelict Logs Recovered 6 | . . . 1 . . . . . 2 2 . 1 . . . . . . . . . . Drone Launches . | . . . . . . . . . . . . . . . . . . . . . . . Drone Recoveries . | . . . . . . . . . . . . . . . . . . . . . . . Exploration | -11 -10 -9 -9 -8 -8 -8 -8 -7 -7 -7 -7 -6 -6 -6 -6 -6 -6 -5 -5 -5 -5 -5 ------------- Run | Yrd Mat Mat Min Mat Gar Mat Sto Fac Low Low Dat Pro Fac Ext Cet Arc Hub Fac Was Fac Upp Upp Turns Passed 21376 | 73 258 2563 2595 1307 2270 105 1075 1191 488 960 157 1254 530 1810 718 611 256 842 131 1290 825 67 Spaces Moved 8519 | 44 116 962 794 466 901 39 355 610 268 469 92 538 163 634 229 138 94 383 136 575 472 41 Core 230 | 8 . . . . . . . . . . . . . . . . . . 102 81 . 39 Treads 7431 | 36 116 962 794 466 782 39 355 610 268 469 92 538 93 . 194 138 94 383 34 494 472 2 Legs 299 | . . . . . . . . . . . . . . 264 35 . . . . . . . Wheels 440 | . . . . . . . . . . . . . 70 370 . . . . . . . . Hover 119 | . . . . . 119 . . . . . . . . . . . . . . . . . Flight . | . . . . . . . . . . . . . . . . . . . . . . . Fastest Speed 38 | 50 160 160 320 240 38 240 160 160 160 160 165 163 185 185 160 240 240 160 50 50 160 50 Average Speed 205 | 140 160 209 320 240 216 240 216 162 160 163 165 215 307 193 230 240 240 183 77 150 160 55 Slowest Speed 540 | 160 160 320 320 240 240 240 240 240 160 245 165 400 400 540 240 240 240 240 160 240 160 160 Overloaded Moves . | . . . . . . . . . . . . . . . . . . . . . . . Propulsion Burnouts . | . . . . . . . . . . . . . . . . . . . . . . . Robots Hopped . | . . . . . . . . . . . . . . . . . . . . . . . Cave-ins Triggered 1 | . . . . . . . 1 . . . . . . . . . . . . . . . Exploration Rate (%) 48 | 4 20 82 99 42 86 8 59 18 48 63 69 62 6 74 67 89 20 9 82 17 69 16 Regions Visited 22 Branch Regions 12 Pre-discovered Areas 3 | . . . . . . . . . 1 . 1 1 . . . . . . . . . . Known Exits Taken 7 | . . 1 . 1 . 1 . 1 . . . . . . . . 1 . . 1 1 . Unknown Exits Taken 12 | 1 1 . 1 . . . 1 . 1 1 1 1 1 1 1 1 . . . . . . Scrap Searched 13 | . . . 2 . . . . . 1 6 . 2 . . . . . . . . 2 . Spaces Dug 37 | . . . . . . . 7 7 . 2 . . . 4 . . 4 7 . 4 2 . Terrain Destroyed 404 | . . 17 . 18 75 1 16 16 9 45 . 9 2 28 44 19 5 39 1 49 11 . Melee 18 | . . . . . . . 6 7 . . . . . . . . 4 1 . . . . Projectile 229 | . . . . 4 . 1 10 9 9 12 . 9 2 28 44 19 1 38 1 31 11 . AOE 157 | . . 17 . 14 75 . . . . 33 . . . . . . . . . 18 . . Terrain Rammed . | . . . . . . . . . . . . . . . . . . . . . . . Walls Destroyed . | . . . . . . . . . . . . . . . . . . . . . . . Machines Disabled . | . . . . . . . . . . . . . . . . . . . . . . . Actions | -11 -10 -9 -9 -8 -8 -8 -8 -7 -7 -7 -7 -6 -6 -6 -6 -6 -6 -5 -5 -5 -5 -5 --------- Run | Yrd Mat Mat Min Mat Gar Mat Sto Fac Low Low Dat Pro Fac Ext Cet Arc Hub Fac Was Fac Upp Upp Total 11018 | 56 147 1323 825 567 1100 42 515 737 295 579 97 583 181 1141 318 386 116 462 148 834 502 64 Wait 1039 | . 4 157 17 1 14 . 42 45 9 35 . 14 . 327 . 228 16 19 3 103 . 5 Move 8497 | 43 115 961 793 466 898 38 354 609 267 468 91 537 162 633 228 137 93 383 135 574 471 41 Hop . | . . . . . . . . . . . . . . . . . . . . . . . Pick Up 213 | 7 7 37 3 19 33 . 21 13 2 9 . 2 3 8 12 3 . 10 1 17 6 . Fast Attach 76 | . . 7 . 2 5 . 3 1 . . 3 . 4 9 5 2 . 3 1 30 1 . Attach 108 | 6 . 7 . 6 15 . 8 8 1 10 . 3 1 6 8 2 . 9 1 10 1 6 Detach 9 | . . . . . 1 . . . . . . . 1 2 3 . . 1 . 1 . . Swap 68 | . . 13 1 9 6 . 7 6 . 4 . 2 . 9 3 . 3 1 1 2 1 . Drop 127 | . . 32 . 20 17 . 4 10 1 5 3 . 1 6 11 . . 5 . 11 1 . Fire 693 | . 21 108 9 44 71 4 57 38 15 48 . 25 9 42 48 14 . 30 6 79 21 4 Melee 34 | . . . . . . . 15 7 . . . . . . . . 4 1 . . . 7 Ram 1 | . . . . . . . . . . . . . . . . . . . . . . 1 Kick . | . . . . . . . . . . . . . . . . . . . . . . . Crush 12 | . . 1 2 . . . 2 . . . . . . . . . . . . 7 . . Escape Stasis 70 | . . . . . 34 . 2 . . . . . . 34 . . . . . . . . Rewire 71 | . . . . . 6 . . . . . . . . 65 . . . . . . . . Trap . | . . . . . . . . . . . . . . . . . . . . . . . Miscellaneous . | . . . . . . . . . . . . . . . . . . . . . . . Route ------- -11/Scrapyard -10/Materials -9/Materials (discovered 3 exits: *Mat x2 / *Min) -9/Mines (discovered 2 exits: *Mat x2) -8/Materials (discovered 2 exits: *Fac / Gar) -8/Garrison (discovered 3 exits: *Mat x3) -8/Materials -8/Storage -7/Factory (discovered 2 exits: *Low x2) -7/Lower Caves -7/Lower Caves -7/Data Miner -6/Proximity Caves -6/Factory (discovered 2 exits: *Fac / *Ext) -6/Extension (discovered 2 exits: *Fac / [*Cet]) -6/Cetus (discovered 2 exits: *Fac / [*Arc]) -6/Archives (discovered 2 exits: [*Hub x2]) -6/Hub_04(d) -5/Factory -5/Waste -5/Factory (discovered 3 exits: [*Fac x2] / *Upp) -5/Upper Caves -5/Upper Caves History --------- Turn | Location | Event 17 | -11/Scrapyard | Discovered new exit (range 15) 74 | -11/Scrapyard | Entered Materials 255 | -10/Materials | Discovered new exit (range 4) 303 | -10/Materials | Build established: Mutant 332 | -10/Materials | Entered another Materials area 332 | -9/Materials | Evolved 2 slots: Utility x1, Weapon x1 372 | -9/Materials | Identified exit to Mines 1063 | -9/Materials | Build established: Scavenger-Tank 1093 | -9/Materials | Discovered new exit (range 12) 1836 | -9/Materials | Repaired Hvy. Assault Rifle 2522 | -9/Materials | Discovered new exit (range 3) 2732 | -9/Materials | First assault squad dispatched 2895 | -9/Materials | Entered Mines 3252 | -9/Mines | Assisted by bots powering up and referring to "LRC-V3" 3303 | -9/Mines | Learned Materials security intel 4483 | -9/Mines | Discovered new exit (range 5) 4765 | -9/Mines | Received a Rocket Launcher from a helpful Derelict 4849 | -9/Mines | A weapon hastily lodged in a ceiling crevice suddenly fell to the ground 4885 | -9/Mines | Discovered new exit (range 5) 5490 | -9/Mines | Entered Materials 5490 | -8/Materials | Evolved 2 slots: Propulsion x2 6705 | -8/Materials | Discovered new exit (range 16) 6797 | -8/Materials | Identified exit to Garrison 6797 | -8/Materials | Entered Garrison 6960 | -8/Garrison | Triggered checkpoint 6998 | -8/Garrison | Garrison Relay disabled 7122 | -8/Garrison | Triggered checkpoint 7398 | -8/Garrison | Triggered checkpoint 7582 | -8/Garrison | Triggered checkpoint 7652 | -8/Garrison | Triggered checkpoint 7690 | -8/Garrison | Triggered checkpoint 7768 | -8/Garrison | Triggered checkpoint 7810 | -8/Garrison | Build established: Scavenger-Gunner 7839 | -8/Garrison | Discovered new exit (range 12) 7961 | -8/Garrison | Phase Generator disabled 8303 | -8/Garrison | Lost 3 parts (2n1w) 8457 | -8/Garrison | Discovered new exit (range 9) 8496 | -8/Garrison | Attempted to access garrison exit controls, blocked by remote lockdown 8853 | -8/Garrison | Discovered new exit (range 15) 8887 | -8/Garrison | Attempted to access garrison exit controls, blocked by remote lockdown 9067 | -8/Garrison | Entered Materials 9084 | -8/Materials | Identified exit to Storage 9172 | -8/Materials | Entered Storage 9304 | -8/Storage | Garrison activated, responded to threat 9541 | -8/Storage | Crushed by falling debris 9567 | -8/Storage | Core integrity fell below 50% 9731 | -8/Storage | Lost 3 parts (1n1u1w) 10127 | -8/Storage | Build established: Mutant 10208 | -8/Storage | Discovered new exit (range 7) 10247 | -8/Storage | Entered Factory 10247 | -7/Factory | Evolved 2 slots: Utility x2 10443 | -7/Factory | Build established: Scavenger-Mutant 10578 | -7/Factory | Repaired Lgt. Treads 11231 | -7/Factory | Identified exit to Lower Caves 11438 | -7/Factory | Entered Lower Caves 11444 | -7/Lower Caves | Met a Warlord Commander 11445 | -7/Lower Caves | Learned location of Warlord (-4) 11460 | -7/Lower Caves | Found Encrypted Comm Array 11608 | -7/Lower Caves | Learned 8 Factory zone layouts 11875 | -7/Lower Caves | Discovered new exit (range 12) 11926 | -7/Lower Caves | Entered another Lower Caves area 12115 | -7/Lower Caves | Spotted B-75 Beast 12226 | -7/Lower Caves | Attracted the attention of an 0b10 checkpoint 12280 | -7/Lower Caves | Learned Factory security intel 12334 | -7/Lower Caves | Build established: Mutant 12359 | -7/Lower Caves | Learned Factory stockpile data 12607 | -7/Lower Caves | Attracted the attention of an 0b10 outpost 12657 | -7/Lower Caves | Destroyed 7 combat bots 12663 | -7/Lower Caves | Lost 4 parts (2n2w) 12861 | -7/Lower Caves | Discovered new exit (range 14) 12886 | -7/Lower Caves | Entered Data Miner 12888 | -7/Data Miner | Discovered new exit (range 6) 12919 | -7/Data Miner | Met Data Miner 12952 | -7/Data Miner | Learned location of Section 7 (-2) 12952 | -7/Data Miner | Acquired the access code to Warlord's prototype stash 12975 | -7/Data Miner | Received God Mode back door access code from Data Miner 13043 | -7/Data Miner | Entered Proximity Caves 13251 | -6/Proximity Caves | Spotted B-75 Beast 13380 | -6/Proximity Caves | Build established: Gunner 13533 | -6/Proximity Caves | Learned location of Extension (-6) 14113 | -6/Proximity Caves | Attracted the attention of an 0b10 checkpoint 14147 | -6/Proximity Caves | Escorted by Enhanced Grunt 14174 | -6/Proximity Caves | Lost 3 parts (1n2w) 14256 | -6/Proximity Caves | Discovered new exit (range 9) 14297 | -6/Proximity Caves | Entered Factory 14297 | -6/Factory | Accompanied by 2 allies 14297 | -6/Factory | Evolved 2 slots: Utility x2 14298 | -6/Factory | Identified exit to Factory 14298 | -6/Factory | Lost 3 parts (2n1u) 14778 | -6/Factory | Found Prototype Device 14778 | -6/Factory | Identified Exp. Thermal Shield 14799 | -6/Factory | Discovered new exit (range 15) 14827 | -6/Factory | Entered Extension 14890 | -6/Extension | Rescued a captive Derelict 14913 | -6/Extension | Rescued A7 14948 | -6/Extension | System corruption reached 10% 15039 | -6/Extension | Rescued a captive Derelict 15071 | -6/Extension | Build established: Scavenger-Tank 15283 | -6/Extension | Lost 5 allies 15338 | -6/Extension | Spotted B-75 Beast 15365 | -6/Extension | Allies destroyed B-75 Beast 15369 | -6/Extension | Spotted B-75 Beast 15405 | -6/Extension | Allies destroyed B-75 Beast 15435 | -6/Extension | Lost 6 parts (1p1n3u1w) 15489 | -6/Extension | Rescued a captive Derelict 15489 | -6/Extension | Rescued a captive Derelict 15518 | -6/Extension | Rescued a captive Derelict 15519 | -6/Extension | Rescued a captive Derelict 15529 | -6/Extension | Rescued a captive Derelict 15685 | -6/Extension | Extracted ID and sensor layout for unrecognized location from A7's data core 15722 | -6/Extension | Lost 4 allies 15777 | -6/Extension | Rescued a captive Derelict 16006 | -6/Extension | Rescued a captive Derelict 16011 | -6/Extension | Rescued a captive Derelict 16262 | -6/Extension | Discovered exit to Factory (range 10) 16265 | -6/Extension | Discovered new exit (range 6) 16327 | -6/Extension | Disrupted transfer network 16366 | -6/Extension | Lost 3 allies 16637 | -6/Extension | Entered Cetus 16637 | -6/Cetus | Accompanied by 4 allies 16661 | -6/Cetus | Spotted Cetus Guard 16661 | -6/Cetus | Spotted Cetus Guard 16663 | -6/Cetus | Spotted Cetus Guard 16681 | -6/Cetus | Destroyed Cetus Guard 16684 | -6/Cetus | Destroyed Cetus Guard 16687 | -6/Cetus | Destroyed Cetus Guard 16688 | -6/Cetus | Spotted Cetus Guard 16694 | -6/Cetus | Destroyed Cetus Guard 16703 | -6/Cetus | Lost 3 allies 16872 | -6/Cetus | Discovered new exit (range 16) 16911 | -6/Cetus | Spotted Cetus Guard 16912 | -6/Cetus | Spotted Cetus Guard 16916 | -6/Cetus | Destroyed Cetus Guard 16916 | -6/Cetus | Spotted Cetus Guard 16918 | -6/Cetus | Spotted Cetus Guard 16922 | -6/Cetus | Destroyed Cetus Guard 16938 | -6/Cetus | Destroyed Cetus Guard 16945 | -6/Cetus | Destroyed Cetus Guard 16969 | -6/Cetus | Discovered exit to Factory (range 16) 16981 | -6/Cetus | Met Revision 17 17144 | -6/Cetus | Cetus Manufacturing Module disabled 17325 | -6/Cetus | Destroyed 8 combat bots 17355 | -6/Cetus | Entered Archives 17546 | -6/Archives | Core integrity fell below 50% 17667 | -6/Archives | Discovered new exit (range 16) 17753 | -6/Archives | Discovered new exit (range 16) 17966 | -6/Archives | Entered Hub_04(d) 18097 | -6/Hub_04(d) | Joined by Warlord Ghost squad 18165 | -6/Hub_04(d) | Discovered exit to Factory (range 5) 18196 | -6/Hub_04(d) | Network Hub disabled 18222 | -6/Hub_04(d) | Entered Factory 18222 | -5/Factory | Evolved 2 slots: Power x1, Utility x1 18223 | -5/Factory | Identified exit to Upper Caves 18695 | -5/Factory | Spotted B-75 Beast 18822 | -5/Factory | Build established: Scavenger-Mutant 18889 | -5/Factory | Joined by Warlord Chimera squad 18889 | -5/Factory | Lost 3 parts (1p2u) 19005 | -5/Factory | Garrison activated, responded to threat 19064 | -5/Factory | Sucked down chute 19064 | -5/Factory | Entered Waste 19079 | -5/Waste | EMP discharged 19092 | -5/Waste | Spotted C-40 Crusher 19092 | -5/Waste | Spotted C-40 Crusher 19109 | -5/Waste | Crushed by Compactor (1 part destroyed) 19112 | -5/Waste | Crushed by Compactor (1 part destroyed, 1 dropped) 19115 | -5/Waste | Crushed by Compactor (0 parts destroyed, 1 dropped) 19118 | -5/Waste | Crushed by Compactor (1 part destroyed, 2 dropped) 19138 | -5/Waste | Released all parts (6) 19150 | -5/Waste | Lost 5 parts (1n2u2w) 19152 | -5/Waste | Spotted C-40 Crusher 19153 | -5/Waste | Spotted C-40 Crusher 19157 | -5/Waste | Spotted C-40 Crusher 19159 | -5/Waste | Spotted C-40 Crusher 19179 | -5/Waste | EMP discharged 19179 | -5/Waste | System corruption reached 10% 19186 | -5/Waste | Discovered new exit (range 11) 19193 | -5/Waste | Found Broken Gamma Bomb Array 19195 | -5/Waste | Entered Factory 19437 | -5/Factory | Build established: Mutant 19779 | -5/Factory | Spotted B-75 Beast 20013 | -5/Factory | Discovered new exit (range 21) 20121 | -5/Factory | Core integrity fell below 50% 20160 | -5/Factory | Lost 9 parts (3p2n2u2w) 20469 | -5/Factory | Discovered new exit (range 7) 20472 | -5/Factory | Discovered exit to Upper Caves (range 5) 20485 | -5/Factory | Entered Upper Caves 20485 | -5/Upper Caves | Spotted B-75 Beast 20757 | -5/Upper Caves | Build established: Scavenger-Skirmisher 20870 | -5/Upper Caves | Attracted the attention of an 0b10 checkpoint 21286 | -5/Upper Caves | Discovered new exit (range 9) 21307 | -5/Upper Caves | Identified exit to Upper Caves 21310 | -5/Upper Caves | Entered another Upper Caves area 21324 | -5/Upper Caves | System corruption reached 30% 21327 | -5/Upper Caves | Core integrity fell below 20% 21357 | -5/Upper Caves | Released all parts (7) 21377 | -5/Upper Caves | Destroyed by P-70 Sage with Tesla Rifle Last Messages --------------- 21353_ Q%FA<8DLI5GWQW,>RNL L 21353_ B-60 Warrior heat short circuits Unknown Treads. 21354_ B-60 Warrior heat damages Unknown Power Core. 21354_ G-50 Soldier IFF system glitched. 21354_ G-50 Soldier knocked back. 21355_ Great Maul destroyed. 21355_ System corrupted by crushing effect (+2). 21357_ Released Adv. Signal Interpreter. 21357_ Released Enh. Optical Array. 21357_ Released Hcp. Battery. 21357_ Released Adv. Heat Sink. 21357_ Released Hcp. Storage Unit. 21357_ Released Med. Treads. 21357_ Released Hvy. Treads. 21358_ Critical hit (Burn: +37). 21362_ G-50 Soldier IFF system glitched. 21368_ System corrupted: Heat flow error (+219). 21373_ XO-LB6(k) breaks down the debris. 21377_ C-30 ARC bursts open, deploying its payload. 21377_ P-70 Sage unfolds itself. Map ----- +----------------------------------------------------+ | ?????????????????????????????????????????????????? | | ?????????????????????????????????????????????????? | | ?????????????????????????????????????????????????? | | ?????????????????????????????????????????????????? | | ?????????????????????????????????????????????????? | | ?????????????????????????????????????????????????? | | ?????????????????????????????????????????????????? | | ?????????????????????????????????????????????????? | | ?????????????????????????????? #?????????????????? | | ?????????????????????????????? ?????????????????? | | ?????????????????????????????? ?????????????????? | | ?????????????????????????????? ##???##??????????? | | ?????????????????? ???????? #?## ##?????????? | | ????????????????? ????????# ### ##????????? | | ?????????????????? %p#???????# ##???????? | | ?????????????????? ???????# ##??????? | | ??????????????????? p #?????## #??????? | | ???????????????????? ????## #??????# | | ????????????????????# ????# ##????## | | ????????????????????# ???## ###??# | | ????????????????????# ??# #### | | ???????????????????## ??# ## | | ??????????????????## ??# ## | | ?????????? ## ### #?# | | ?????????? #???# | | ??????????# @ ## ###### | | ????????????????# ##### ## ## | | ????????????????# #???# | | ????????????????# #### #??## | | ?????????????? #???# #?## | | ????????????# ##???? #### | | ????????????### #????? #?# ### | | ??????????????# #????? ###?## ##### | | ??????????????## #????? ##????## #??## | | ???????????????###????? #???????## #??## # | | ??????????????????????? #?????????# ##??# ## | | ??????????????????????? ?????????? ???? ####? | | ???????????????????????? ?????????? ??? ##???? | | ????????????????????????#?????????? ???###?????? | | ??????????????????????????????????? ???????????? | | ?????????????????????????????????? ???????????? | | ???????????????????????????????????###???????????? | | ?????????????????????????????????????????????????? | | ?????????????????????????????????????????????????? | | ?????????????????????????????????????????????????? | | ?????????????????????????????????????????????????? | | ?????????????????????????????????????????????????? | | ?????????????????????????????????????????????????? | | ?????????????????????????????????????????????????? | | ?????????????????????????????????????????????????? | +----------------------------------------------------+ Best States ------------- Heat Dissipation 64 Coolant Potential 80 Energy Generation 45 Energy Capacity 875 Matter Stores 300 Matter Capacity 300 Sight Range 22 Robot Scan Range 15 Terrain Scan Density 10 Armor Coverage 900 Resistance: KI 25 Resistance: TH 30 Utility Shielding 66 Evasion (%) 57 Targeting Accuracy 8 Melee Accuracy 6 Recoil Reduction 4 Energy Filtering 30 Particle Charging 20 Kinecelleration 40 Offensive Hacking 20 Defensive Hacking 10 Item Schematics ----------------- Combat Drone Bay | -7/Data Miner | Free Lgt. Regenerative Plating | -7/Data Miner | Free Biomechanical Wings | -7/Data Miner | Free Gravity Neutralizer | -7/Data Miner | Free Scatter Rocket Array | -7/Data Miner | Free Linear Gravjet | -7/Data Miner | Free Remote Force Field | -7/Data Miner | Free Tesla Rifle | -7/Data Miner | Free Phase Gun | -7/Data Miner | Free Quantum Capacitor | -7/Data Miner | Free Robot Schematics ------------------ L-41 Fighter | -7/Data Miner | Free W-25 Informer | -7/Data Miner | Free S-27 Virus | -7/Data Miner | Free B-48 Gladiator | -7/Data Miner | Free Y-64 Sentinel | -7/Data Miner | Free A-15 Conveyor | -7/Data Miner | Free Fabricated ------------ Nothing Alien Tech Used ----------------- None Achievements -------------- None Challenges ------------ None Game ------ Seed CorruptionMeleeTearclaws Manual? 0 Play Time 01:48:59 Cumulative 157.8 hours Start 2024.02.14 @ 12:07:04 End 2024.02.14 @ 14:07:40 Sessions 1 Manual Loads 0 Difficulty Rogue Special Mode None Game No. 170 Rogue 134 Adventurer 36 Explorer 0 Win Type - Total 9 Types 2/0/7/0/0/0/0/0/0 Lore% 55 Gallery% 79 Achievement% 68 Wizard Run 0 Options --------- ASCII 0 Keyboard 0 Movement Mouse Keybinds 0 Fullscreen 1 Font 18/SmallcapsGlow Map View 76x50 Zoom Use 0% Tactical HUD 1 Map Filters NONE Filters NONE Steam 1 RUN: 0b8951ef-f44e-469c-80b4-1e6b63b2a479